bitfinex/quotes_ETHUSD_20240821
["timestamp","ask_amount","ask_price","bid_price","bid_amount"]
[1724262672139,3.79767,2633.2,2632.7,3.79827]
[1724262672442,3.79767,2633.2,2632.8,0.04521995]
[1724262672646,2.9977,2633.0,2632.4,3.7987]
[1724262672974,2.9977,2633.0,2632.5,3.79863]
[1724262672975,6.79573,2633.0,2632.5,3.79863]
[1724262673310,6.79573,2633.0,2632.5,3.84420923]
[1724262673794,3.79813,2632.9,2632.5,0.04557923]
[1724262673994,3.79846,2632.7,2632.2,3.79909]
[1724262674203,2.9977,2632.9,2632.3,3.79883]
[1724262674411,2.9977,2632.9,2632.6,0.04545946]
[1724262674555,2.9977,2632.9,2632.6,3.7985]
[1724262674757,2.9977,2632.9,2632.7,0.0453397]
[1724262675389,3.79824,2632.8,2632.3,3.79884]
[1724262676650,2.9977,2632.9,2632.1,3.898]
[1724262676851,2.9977,2632.9,2632.6,3.7985]
[1724262677089,2.9977,2632.9,2632.6,3.79845]
[1724262677288,2.9977,2632.9,2632.6,7.59689]
[1724262677472,2.9977,2632.9,2632.7,3.79838]
[1724262678800,3.0452,2633.2,2632.7,3.7983]
[1724262679001,3.0452,2633.2,2632.8,3.79817]
[1724262680159,3.0452,2633.2,2632.7,3.79829]
[1724262680907,3.0452,2633.2,2632.8,3.79822]
[1724262681202,1.59111316,2633.4,2632.7,3.898]
[1724262681203,3.0452,2633.4,2632.7,3.898]
[1724262681404,3.0452,2633.4,2633.1,3.79767]
[1724262682102,3.0452,2633.4,2633.2,3.79763]
[1724262682601,3.0452,2633.4,2633.1,3.79767]
[1724262682803,3.0452,2633.4,2632.9,3.79795]
[1724262683709,3.0452,2633.4,2633.1,3.79766]
[1724262684168,3.0967,2632.9,2632.3,3.93945681]
[1724262684370,3.0967,2632.9,2632.7,3.79835]
[1724262684985,3.0967,2632.9,2632.7,7.59665]
[1724262685185,3.0967,2632.9,2632.7,3.7983]
[1724262685506,3.0967,2632.9,2632.7,7.59661]
[1724262685660,3.2037,2633.2,2632.8,3.79823]
[1724262685865,3.2037,2633.2,2632.8,3.84351229]
[1724262687704,7.00136,2633.2,2632.8,0.04528229]
[1724262687893,3.2037,2633.2,2632.8,3.84349229]
[1724262688076,3.2037,2633.2,2632.8,3.79821]
[1724262688280,3.2037,2633.2,2632.9,0.04515888]
[1724262689086,3.903823,2633.2,2632.9,0.04515888]
[1724262689266,10.59258,2633.0,2632.9,0.04515888]
[1724262689611,5.38892316,2633.1,2632.1,7.59833]
[1724262689612,2.9967,2632.6,2632.1,7.59833]
[1724262689818,2.9967,2632.6,2632.1,3.79916]
[1724262689976,2.9967,2632.6,2632.2,3.79898]
[1724262690174,2.9967,2632.6,2632.2,3.79909]
[1724262691100,3.79874,2632.5,2631.8,3.79957]
[1724262691304,2.9967,2632.2,2631.4,0.3806]
[1724262691469,6.79588,2632.2,2631.6,3.79982]
[1724262691670,2.9967,2632.2,2631.7,3.79977]
[1724262692620,3.79939,2632.0,2631.5,3.80003]
[1724262692766,6.79593,2632.2,2631.5,3.80003]
[1724262694321,2.9967,2632.2,2631.8,3.7996]
[1724262694617,2.9967,2632.2,2631.9,3.79953]
[1724262694824,2.9967,2632.2,2631.8,3.7996]
[1724262694972,2.9967,2632.2,2631.6,3.79988]
[1724262694973,4.84277,2632.2,2631.6,3.79985]
[1724262695321,2.839,2632.1,2631.4,7.60033]
[1724262695478,2.839,2632.1,2631.4,3.80015]
[1724262696022,6.63862,2631.9,2631.3,3.80032]
[1724262696322,6.63862,2631.9,2631.5,0.0470305]
[1724262696523,3.79975,2631.8,2631.4,0.04715037]
[1724262696729,3.79975,2631.8,2631.2,3.80045]
[1724262696730,3.79984,2631.7,2631.6,0.04691064]
[1724262696868,6.67284,2631.7,2631.5,0.0470305]
[1724262697068,6.67284,2631.7,2631.2,3.80045]
[1724262697267,6.67284,2631.7,2631.6,0.04691064]
[1724262697586,6.69315,2631.6,2631.1,3.80061]
[1724262697788,2.8931,2631.6,2631.1,3.80061]
[1724262698106,6.69309,2631.6,2631.1,3.80061]
[1724262698288,2.8931,2631.6,2631.1,3.80061]
[1724262699922,2.8931,2631.6,2631.2,3.80053]
[1724262700422,2.8931,2631.6,2631.0,3.898]
[1724262700628,2.8931,2631.6,2631.4,3.80017]
[1724262700940,2.8931,2631.6,2631.5,3.80011]
[1724262701091,2.8931,2631.6,2631.5,0.0470305]
[1724262701288,2.8931,2631.6,2631.5,3.8471405]
[1724262701634,3.79902,2632.3,2631.8,3.79957]
[1724262701846,7.59808,2632.3,2631.8,3.79957]
[1724262701991,3.79902,2632.3,2631.9,0.04655111]
[1724262702708,7.59806,2632.3,2631.9,0.04655111]
[1724262702913,2.9446,2632.2,2631.9,0.04655111]
[1724262703600,2.9446,2632.2,2632.0,3.79938]
[1724262703926,2.9446,2632.2,2632.0,0.04674682]
[1724262704328,2.9446,2632.2,2631.9,3.7995]
[1724262704527,2.9446,2632.2,2632.1,0.046627]
[1724262704692,2.9446,2632.2,2632.0,0.04674682]
[1724262704895,2.9446,2632.2,2631.9,3.7995]
[1724262705120,2.9446,2632.2,2632.1,0.046627]
[1724262705310,2.9446,2632.2,2632.0,0.04674682]
[1724262705506,2.9446,2632.2,2632.1,0.046627]
[1724262706335,2.9446,2632.2,2631.9,3.7995]
[1724262706637,2.9446,2632.2,2632.0,0.04674682]
[1724262706838,2.9446,2632.2,2631.8,3.79958]
[1724262707089,2.9446,2632.2,2632.1,0.046627]
[1724262707254,2.9446,2632.2,2631.8,3.79958]
[1724262707547,2.9446,2632.2,2632.1,0.046627]
[1724262707701,6.70724,2632.1,2631.6,3.79987]
[1724262707898,6.70722,2632.1,2631.6,3.79987]
[1724262708102,6.70722,2632.1,2631.2,3.80045]
[1724262708103,6.7076,2631.8,2631.2,3.80045]
[1724262708298,3.79985,2631.7,2631.2,3.80045]
[1724262708544,3.79985,2631.7,2631.2,7.60092]
[1724262709027,3.79985,2631.7,2631.2,3.80045]
[1724262709340,2.8864,2631.6,2631.2,3.80045]
[1724262709838,2.8864,2631.6,2631.2,7.60092]
[1724262710216,2.8864,2631.6,2631.3,3.8004]
[1724262710412,2.8864,2631.6,2631.2,3.80045]
[1724262710633,3.80011,2631.5,2631.0,7.60156]
[1724262710814,3.80011,2631.5,2631.0,3.80075]
[1724262711448,2.8864,2631.4,2630.9,3.80096]
[1724262712218,2.8864,2631.4,2631.0,3.80083]
[1724262712742,2.8864,2631.4,2631.1,3.80063]
[1724262713150,7.44,2632.0,2631.4,3.80017]
[1724262713151,2.8864,2631.9,2631.4,3.80017]
[1724262713377,2.8864,2631.9,2631.5,3.8001]
[1724262713500,2.8864,2631.9,2631.4,3.80017]
[1724262713901,2.8864,2631.9,2631.4,7.60034]
[1724262714133,2.8864,2631.9,2631.4,3.80016]
[1724262714336,2.8864,2631.9,2631.7,3.79974]
[1724262714739,2.8864,2631.9,2631.7,3.79973]
[1724262715062,2.8864,2632.2,2632.0,3.79931]
[1724262715855,2.8864,2632.2,2631.8,7.59911]
[1724262716054,2.8864,2632.2,2632.1,0.04677384]
[1724262716206,2.8864,2632.2,2631.8,3.79954]
[1724262716405,2.8864,2632.2,2631.6,3.79986]
[1724262716406,3.79932,2632.1,2631.6,3.79986]
[1724262716855,2.7676,2632.0,2631.4,3.80015]
[1724262717150,2.7676,2632.0,2631.7,3.7997]
[1724262717504,2.7676,2632.0,2631.6,3.79986]
[1724262717705,2.7676,2632.0,2631.6,7.59973]
[1724262717948,2.7676,2632.0,2631.6,3.79986]
[1724262718806,2.7676,2632.0,2631.6,7.59974]
[1724262719004,2.7676,2632.0,2631.6,3.79986]
[1724262719324,2.7676,2632.0,2631.7,3.7998]
[1724262719658,2.7676,2632.0,2631.6,3.79986]
[1724262720008,6.56699,2632.0,2631.6,3.79986]
[1724262720308,2.7676,2632.0,2631.6,3.79986]
[1724262720961,2.951,2631.9,2631.4,3.80017]
[1724262721455,6.5983,2631.8,2631.2,3.80043]
[1724262721607,2.7986,2631.7,2631.2,3.80041]
[1724262722360,2.7986,2631.7,2631.4,3.80021]
[1724262722510,2.7986,2631.7,2631.0,7.69872]
[1724262722853,3.79969,2631.8,2631.1,3.0]
[1724262722854,2.4153,2631.5,2631.1,3.0]
[1724262723035,2.4153,2631.5,2631.3,3.80038]
[1724262723703,2.4153,2631.5,2631.1,3.52110972]
[1724262723704,2.4153,2631.5,2631.1,3.80054]
[1724262724348,6.21542,2631.5,2631.0,3.80072]
[1724262724657,2.4153,2631.5,2631.2,3.80052]
[1724262726322,2.4153,2631.5,2631.2,3.80047]
[1724262727612,6.21542,2631.5,2631.0,3.80072]
[1724262727820,2.2791,2631.3,2631.0,7.60146]
[1724262728031,2.2791,2631.3,2631.0,3.80072]
[1724262729353,2.2791,2631.3,2631.1,3.80057]
[1724262730145,2.2791,2631.3,2631.1,4.39517438]
[1724262730973,2.2791,2631.3,2631.2,4.44323049]
[1724262731315,2.2791,2631.3,2631.2,3.84865671]
[1724262731772,2.3128,2631.8,2631.2,0.04811671]
[1724262731913,2.3128,2631.8,2631.6,3.79983]
[1724262732361,2.3128,2631.8,2631.7,0.04754673]
[1724262733269,6.11248,2631.8,2631.7,0.04754673]
[1724262733568,6.11248,2631.8,2631.2,4.3950364]
[1724262733569,2.4077,2631.7,2631.2,0.5945944]
[1724262733751,2.4077,2631.5,2631.2,0.5945944]
[1724262734320,6.20787,2631.5,2631.1,0.59462561]
[1724262734633,6.20787,2631.5,2631.1,3.80067]
[1724262735026,2.4077,2631.5,2631.1,3.80067]
[1724262736364,2.4077,2631.5,2631.2,0.59461213]
[1724262736665,2.4077,2631.5,2631.1,3.80067]
[1724262737046,2.4361,2631.4,2631.0,3.80071]
[1724262737343,2.4361,2631.4,2631.1,0.59462878]
[1724262737667,2.4361,2631.4,2631.1,3.80068]
[1724262738369,2.4361,2631.4,2631.2,3.8005]
[1724262741425,2.4361,2631.4,2631.2,3.80044]
[1724262741969,2.4361,2631.4,2631.2,7.60091]
[1724262742166,2.4361,2631.4,2631.3,3.8004]
[1724262742541,2.4361,2631.4,2631.2,3.80044]
[1724262744532,2.4361,2631.4,2631.0,3.80069]
[1724262744888,2.4361,2631.4,2631.1,3.80061]
[1724262745969,2.4361,2631.4,2631.2,0.64293106]
[1724262746173,2.4361,2631.4,2631.2,0.04831129]
[1724262746542,2.4361,2631.4,2631.2,3.84884129]
[1724262747274,2.4361,2631.4,2631.2,0.04831129]
[1724262747426,2.4361,2631.4,2631.1,3.80061]
[1724262747627,2.4361,2631.4,2631.2,0.64293816]
[1724262747862,2.4361,2631.4,2631.2,0.04831129]
[1724262748172,2.4361,2631.4,2631.2,3.84883129]
[1724262749464,2.4361,2631.4,2631.3,0.59461779]
[1724262749668,2.4361,2631.4,2631.3,0.64280919]
[1724262749993,2.4361,2631.4,2631.3,0.64280973]
[1724262750132,2.4361,2631.4,2631.3,0.0481914]
[1724262750630,2.4361,2631.4,2631.3,0.5946193]
[1724262750830,2.4361,2631.4,2631.3,0.0481914]
[1724262751047,2.4361,2631.4,2631.2,3.80052]
[1724262751248,2.4361,2631.4,2631.3,0.0481914]
[1724262751484,2.4361,2631.4,2631.2,3.80052]
[1724262751711,2.4361,2631.4,2630.8,0.82537837]
[1724262751712,6.10268,2630.9,2630.8,0.82537837]
[1724262752003,6.10268,2630.9,2630.0,3.80216]
[1724262752004,2.3017,2630.6,2630.0,3.80216]
[1724262752156,6.10332,2630.5,2630.1,0.59481091]
[1724262752353,6.10332,2630.5,2629.9,3.80235]
[1724262752354,2.3017,2630.5,2629.9,3.80235]
[1724262752580,2.3017,2630.5,2630.1,3.80207]
[1724262752984,6.10326,2630.5,2630.1,3.80207]
[1724262753164,2.3596,2630.4,2630.1,3.80207]
[1724262754465,2.3596,2630.4,2630.1,7.60414]
[1724262754680,2.3596,2630.4,2630.1,3.80204]
[1724262755995,2.303,2630.3,2629.7,4.39743617]
[1724262756298,2.303,2630.2,2629.8,3.80248]
[1724262757051,2.303,2630.2,2630.0,3.80217]
[1724262759391,2.303,2630.2,2629.9,3.8024]
[1724262759934,2.303,2630.2,2630.0,3.80223]
[1724262761016,2.303,2630.2,2630.1,0.0484963]
[1724262761336,2.303,2630.2,2629.8,7.60494]
[1724262761540,2.303,2630.2,2630.1,0.04847795]
[1724262761685,2.303,2630.2,2629.8,3.80247]
[1724262761885,2.303,2630.2,2630.1,0.04847795]
[1724262762131,2.303,2630.2,2630.0,3.80226]
[1724262762331,2.303,2630.2,2630.1,0.04847795]
[1724262763042,2.303,2630.2,2629.9,3.8024]
[1724262763232,2.303,2630.2,2630.1,0.04847795]
[1724262763437,2.303,2630.2,2629.8,3.80244]
[1724262763438,2.303,2630.2,2630.0,0.04859795]
[1724262763742,2.303,2630.2,2629.8,3.80244]
[1724262763743,2.303,2630.2,2630.1,0.04847795]
[1724262764092,2.303,2630.2,2629.9,3.80234]
[1724262764290,2.303,2630.2,2630.1,0.04884465]
[1724262764488,2.303,2630.2,2629.6,3.80276]
[1724262764693,2.303,2630.2,2630.1,0.04884465]
[1724262764939,3.80223,2630.1,2629.6,3.80276]
[1724262765156,2.4449,2630.0,2629.6,3.80276]
[1724262765622,2.4449,2630.0,2629.7,3.80257]
[1724262765822,2.4449,2630.4,2629.9,3.80242]
[1724262766026,2.4449,2630.4,2630.2,3.80191]
[1724262766225,2.4449,2630.4,2630.3,3.80184]
[1724262766425,2.4449,2630.4,2629.8,3.80253]
[1724262766426,2.4449,2630.8,2630.5,3.80155]
[1724262766592,2.4449,2630.8,2630.5,3.80144]
[1724262766807,2.4449,2630.8,2630.0,7.70025]
[1724262766808,2.4449,2630.8,2630.3,3.80174]
[1724262767143,2.4449,2630.8,2630.4,3.8017]
[1724262768074,2.4449,2630.8,2630.4,7.60333]
[1724262768231,2.4449,2630.8,2630.4,7.60326]
[1724262768435,2.4449,2630.8,2630.0,4.49294225]
[1724262768436,2.4449,2630.8,2630.3,3.898]
[1724262768630,2.4449,2630.8,2630.7,3.80126]
[1724262768865,2.333,2631.4,2630.6,3.898]
[1724262769067,2.333,2631.4,2631.0,3.80076]
[1724262769717,2.333,2631.4,2630.9,3.80089]
[1724262769918,2.333,2631.3,2630.7,3.80114]
[1724262770117,2.3308,2631.1,2630.7,3.80114]
[1724262771138,2.3322,2631.0,2630.5,3.80144]
[1724262771437,2.3322,2630.9,2630.4,3.0]
[1724262771643,3.80014,2631.5,2630.0,3.898]
[1724262771644,2.4102,2630.7,2630.0,3.898]
[1724262771817,4.03434,2630.8,2629.7,0.44695479]
[1724262771818,2.4102,2630.5,2630.1,3.8021]
[1724262772017,2.4102,2630.5,2630.2,3.80195]
[1724262772223,2.4102,2630.5,2630.3,3.80183]
[1724262773549,2.4102,2630.5,2630.3,7.60356]
[1724262773755,2.4102,2630.5,2630.3,3.80173]
[1724262775886,2.4102,2630.5,2630.2,3.80198]
[1724262776211,2.4102,2630.5,2630.4,0.04822431]
[1724262776484,2.4102,2630.5,2630.4,0.04818031]
[1724262776691,2.4102,2630.5,2630.2,3.80198]
[1724262776836,2.4102,2630.5,2630.3,3.80184]
[1724262777042,2.4102,2630.5,2630.4,0.04818031]
[1724262778142,2.4102,2630.5,2630.4,3.84988031]
[1724262779322,2.4102,2630.5,2630.4,0.04818031]
[1724262779813,2.4102,2630.5,2630.1,7.60406]
[1724262780002,2.4102,2630.5,2630.2,3.80199]
[1724262780181,2.4102,2630.5,2630.2,3.85041026]
[1724262780507,2.4102,2630.5,2630.2,0.04842026]
[1724262781460,6.21183,2630.5,2630.2,0.04842026]
[1724262781692,6.21183,2630.5,2629.9,3.80232]
[1724262781693,2.278,2630.3,2629.9,3.80232]
[1724262782121,2.278,2630.3,2629.9,7.60463]
[1724262782263,2.278,2630.3,2630.0,3.80226]
[1724262782666,2.278,2630.3,2630.1,3.80213]
[1724262783818,2.278,2630.3,2629.9,7.60459]
[1724262784120,2.278,2630.3,2630.1,3.80213]
[1724262784472,2.278,2630.3,2629.9,7.60459]
[1724262784910,2.278,2630.3,2629.9,3.80228]
[1724262786513,2.3223,2630.1,2629.7,3.80262]
[1724262787083,2.3223,2630.1,2629.7,7.60525]
[1724262787313,2.3223,2630.1,2629.7,3.80262]
[1724262787480,6.12445,2630.1,2629.7,3.80262]
[1724262787682,3.80215,2630.1,2629.5,3.80286]
[1724262788017,2.27,2629.9,2629.5,3.80286]
[1724262788311,2.3168,2629.8,2629.3,3.80315]
[1724262788519,2.3168,2629.8,2629.4,6.80307]
[1724262788667,2.3168,2629.8,2629.3,3.80315]
[1724262788871,2.3168,2629.8,2629.1,3.80348]
[1724262788872,2.3168,2629.6,2629.1,3.80348]
[1724262789087,2.3168,2629.5,2629.1,3.80348]
[1724262789668,3.80338,2629.3,2628.8,3.80394]
[1724262789868,6.12025,2629.2,2628.7,3.80415]
[1724262790129,2.3168,2629.2,2628.7,3.80415]
[1724262790476,2.4727,2629.1,2628.6,7.6085]
[1724262790804,2.4727,2629.1,2628.7,3.85464512]
[1724262791275,2.4727,2629.1,2628.8,3.80397]
[1724262791479,2.4727,2629.1,2628.7,3.85455512]
[1724262791813,2.4727,2629.1,2628.8,0.050365]
[1724262792123,3.80382,2629.0,2628.8,0.050365]
[1724262792326,2.3081,2628.8,2628.3,3.80465]
[1724262792621,6.11211,2628.8,2628.3,3.80465]
[1724262792769,2.3081,2628.8,2628.2,3.898]
[1724262792973,2.3081,2628.8,2628.5,3.80443]
[1724262793910,2.3081,2628.8,2628.7,3.80416]
[1724262794799,2.3081,2628.8,2628.4,3.80446]
[1724262795039,2.3081,2628.8,2628.7,3.80416]
[1724262795318,2.3081,2628.8,2628.5,3.80435]
[1724262795523,2.3081,2628.8,2628.6,3.80421]
[1724262796332,2.3081,2628.8,2628.3,7.70267]
[1724262796468,2.4892,2628.7,2628.3,3.80467]
[1724262796677,7.303075,2628.7,2628.1,3.80496]
[1724262796904,2.4892,2628.7,2628.3,3.80472]
[1724262797628,2.4892,2628.7,2628.3,3.80466]
[1724262798500,2.4892,2628.7,2628.3,7.60931]
[1724262798702,2.4892,2628.7,2628.4,3.80458]
[1724262799185,2.4892,2628.7,2628.3,7.60928]
[1724262799374,2.4892,2628.7,2628.3,7.60929]
[1724262799804,2.4892,2628.7,2628.3,3.80463]
[1724262800021,2.4892,2628.7,2628.3,7.70263]
[1724262800220,2.4892,2628.7,2628.6,3.8043]
[1724262800602,2.4892,2628.7,2628.5,3.80433]
[1724262801212,2.4892,2628.7,2628.6,3.8043]
[1724262802428,25.4592805,2630.2,2629.1,3.80358]
[1724262802429,2.2765,2629.2,2629.1,3.80358]
[1724262804253,2.2765,2629.2,2629.0,3.80368]
[1724262804545,2.2765,2629.2,2628.6,3.898]
[1724262805110,2.2765,2629.2,2628.7,3.80404]
[1724262805314,2.2765,2629.2,2628.9,3.80385]
[1724262805953,2.2765,2629.2,2629.0,0.05100563]
[1724262807249,2.2765,2629.2,2628.8,3.804]
[1724262807762,2.2765,2629.2,2628.9,0.05111469]
[1724262808061,2.2765,2629.2,2628.9,3.85497469]
[1724262808265,2.2765,2629.2,2629.0,3.80359]
[1724262808422,2.2765,2629.2,2629.1,7.60716]
[1724262808617,2.2765,2629.2,2629.1,7.65804552]
[1724262809674,2.2765,2629.2,2629.1,3.85446552]
[1724262810774,2.3986,2629.7,2629.4,3.80304]
[1724262810953,2.3986,2629.7,2629.5,3.85326917]
[1724262811677,2.3986,2629.7,2629.6,3.80285]
[1724262811885,2.3986,2629.7,2629.6,7.6057]
[1724262812033,7.44,2630.2,2630.0,3.80226]
[1724262812235,3.80157,2630.5,2630.0,3.80221]
[1724262812439,3.80157,2630.5,2630.1,0.04958233]
[1724262812440,2.2895,2630.4,2630.1,0.04958233]
[1724262812875,2.2895,2630.4,2630.1,3.85171233]
[1724262813181,2.2895,2630.4,2630.0,3.80217]
[1724262813387,2.2895,2630.4,2630.1,0.0494612]
[1724262813728,3.80199,2630.2,2630.1,0.0494612]
[1724262813928,6.06826,2630.1,2629.7,3.0]
[1724262814236,2.2661,2630.1,2629.8,0.0497625]
[1724262814941,6.06824,2630.1,2629.9,0.04964249]
[1724262815154,7.05525,2630.1,2629.7,3.8027]
[1724262815488,2.2661,2630.0,2629.8,0.0497625]
[1724262815784,4.78915,2630.1,2629.4,7.60613]
[1724262815785,6.06852,2629.9,2629.4,7.60613]
[1724262816095,4.78915,2630.1,2629.5,3.80292]
[1724262816096,2.3598,2629.8,2629.5,3.80292]
[1724262816238,2.3598,2629.8,2629.5,3.8530426]
[1724262816434,2.3598,2629.8,2629.5,0.0501226]
[1724262816669,3.356273,2629.8,2629.5,0.0501226]
[1724262816878,2.3598,2629.6,2629.5,0.0501226]
[1724262817040,2.3598,2629.6,2629.0,3.80358]
[1724262817235,2.3598,2629.6,2629.5,0.05024005]
[1724262817688,2.3598,2629.6,2629.2,3.80336]
[1724262817835,2.3598,2629.6,2629.5,0.05024005]
[1724262818031,2.3598,2629.6,2629.2,3.80336]
[1724262818236,2.3598,2629.6,2629.5,0.05024005]
[1724262818438,2.3598,2629.4,2629.0,3.80365]
[1724262819468,2.3598,2629.4,2629.1,3.80353]
[1724262819864,2.3598,2629.4,2628.7,3.0]
[1724262819865,3.80331,2629.3,2628.8,3.80391]
[1724262820191,3.80331,2629.3,2628.6,7.60842]
[1724262820192,2.3184,2629.1,2628.6,7.60842]
[1724262820371,2.3184,2629.0,2628.6,7.60843]
[1724262820740,2.3184,2629.0,2628.6,3.80421]
[1724262821053,2.3184,2629.0,2628.7,0.05120807]
[1724262821481,2.3184,2629.0,2628.7,3.85534807]
[1724262822895,2.3184,2629.0,2628.7,0.05120807]
[1724262822896,6.12227,2628.9,2628.7,0.05120807]
[1724262823041,2.3184,2628.8,2628.7,0.05120807]
[1724262823242,2.3184,2628.8,2628.4,3.80448]
[1724262823484,2.3184,2628.8,2628.7,0.05120807]
[1724262823788,2.3184,2628.8,2628.4,3.80448]
[1724262823938,2.3184,2628.8,2628.7,0.05120807]
[1724262824653,2.3184,2628.8,2628.5,3.80438]
[1724262824894,2.3184,2628.8,2628.7,0.05120807]
[1724262825193,2.3184,2628.8,2628.6,3.85553819]
[1724262825503,2.3184,2628.8,2628.7,7.65952807]
[1724262825634,3.80336,2629.3,2628.7,7.65952807]
[1724262825635,2.4229,2629.3,2628.8,3.80399]
[1724262826066,2.4229,2629.3,2628.9,3.85529065]
[1724262826885,2.421301,2629.3,2628.9,3.85529065]
[1724262827764,2.421301,2629.3,2629.0,3.80369]
[1724262828113,2.421301,2629.3,2628.9,3.80386]
[1724262828809,7.44,2629.6,2629.3,3.80325]
[1724262828958,7.44,2629.6,2629.4,0.05067593]
[1724262829163,3.80257,2629.8,2629.4,0.05067593]
[1724262829164,7.60524,2629.8,2629.4,0.05067593]
[1724262829502,11.24224,2630.1,2629.2,3.898]
[1724262829660,11.24224,2630.1,2629.5,3.80288]
[1724262829862,2.2594,2629.9,2629.5,7.6058]
[1724262830062,2.2594,2629.9,2629.6,0.05047251]
[1724262830881,6.06191,2629.9,2629.6,0.05047251]
[1724262831176,6.06191,2629.9,2629.3,7.60637]
[1724262831177,6.06191,2629.9,2629.4,3.80311]
[1724262831411,6.06191,2629.9,2629.5,0.05059256]
[1724262831592,3.80259,2629.8,2629.5,0.05059256]
[1724262831766,3.80259,2629.8,2629.1,3.80349]
[1724262831767,3.80285,2629.6,2629.1,3.80349]
[1724262831965,3.80285,2629.6,2629.2,3.05091602]
[1724262832166,2.2594,2629.7,2629.2,6.85431602]
[1724262832664,6.06221,2629.7,2629.2,3.85431602]
[1724262833667,3.80287,2629.6,2629.2,0.05091602]
[1724262833868,6.22488,2629.5,2629.2,0.05091602]
[1724262834181,2.4218,2629.5,2629.3,0.05081063]
[1724262834384,2.4218,2629.5,2629.1,3.80355]
[1724262834710,2.4218,2629.5,2629.2,0.05093071]
[1724262835070,2.4218,2629.5,2629.2,3.85436071]
[1724262835505,2.4218,2629.5,2629.3,3.80328]
[1724262835817,2.4218,2629.5,2629.4,0.05071995]
[1724262836219,2.4218,2629.5,2629.4,3.85385995]
[1724262836757,3.80239,2630.0,2629.4,3.85385995]
[1724262836758,2.4903,2629.9,2629.5,3.80298]
[1724262836901,2.4903,2629.9,2629.4,3.85385995]
[1724262837097,6.29279,2629.9,2629.6,0.05046517]
[1724262837348,2.4903,2629.7,2629.5,0.05058521]
[1724262837531,2.4903,2629.7,2629.2,3.0]
[1724262837532,3.80288,2629.6,2629.2,3.0]
[1724262837702,10.09574,2629.7,2629.6,0.05043212]
[1724262837902,5.555955,2629.9,2628.9,3.80379]
[1724262837903,3.80315,2629.4,2628.9,3.80379]
[1724262838236,2.4903,2629.3,2629.0,0.05115251]
[1724262839540,2.4903,2629.3,2629.0,3.85485251]
[1724262842348,2.4903,2629.3,2629.2,3.80343]
[1724262842884,2.4903,2629.3,2629.2,3.85437171]
[1724262843865,2.4903,2629.3,2629.2,0.05094171]
[1724262844075,2.4903,2629.3,2629.2,3.85437171]
[1724262844235,2.4903,2629.3,2629.2,0.05094171]
[1724262844792,2.3905,2629.3,2629.2,0.05094171]
[1724262844940,2.3905,2629.3,2629.2,0.05098945]
[1724262845478,2.3905,2629.1,2628.7,7.60815]
[1724262845778,2.3905,2629.1,2628.7,3.80406]
[1724262845949,2.3905,2629.1,2628.9,3.80379]
[1724262846393,2.3905,2629.1,2628.9,7.60758]
[1724262846535,2.3905,2629.1,2629.0,3.80372]
[1724262847140,2.4985,2629.6,2629.2,3.80342]
[1724262847383,2.4985,2629.6,2629.0,3.80362]
[1724262847384,3.803,2629.5,2629.0,3.80362]
[1724262847548,2.4985,2629.4,2629.0,3.80362]
[1724262847881,3.80345,2629.2,2628.8,3.80392]
[1724262848067,2.4985,2629.1,2628.8,3.80392]
[1724262848379,6.30216,2629.1,2628.6,3.80428]
[1724262848550,3.80374,2629.0,2628.6,3.80428]
[1724262848891,2.2795,2628.9,2628.6,3.80428]
[1724262849184,2.2795,2628.9,2628.6,3.80423]
[1724262849388,2.2795,2628.9,2628.5,6.80443]
[1724262850142,2.2795,2628.9,2628.6,3.80426]
[1724262850998,2.2795,2628.9,2628.7,0.05163402]
[1724262853242,2.2795,2628.9,2628.7,3.85577402]
[1724262854052,2.2795,2628.9,2628.7,0.05163402]
[1724262854448,3.80401,2628.8,2628.7,0.05163402]
[1724262854702,3.80401,2628.8,2628.1,7.99064]
[1724262854703,2.3873,2628.6,2628.1,7.99064]
[1724262855052,2.3904,2628.5,2628.2,0.05233392]
[1724262855494,2.3904,2628.5,2628.2,3.85712392]
[1724262856263,2.3904,2628.5,2628.2,0.05233392]
[1724262856500,2.285,2628.4,2628.2,0.05233392]
[1724262856796,2.285,2628.4,2628.3,0.05238275]
[1724262856998,2.285,2628.4,2628.1,3.80501]
[1724262857148,2.285,2628.4,2628.2,0.05251394]
[1724262857966,2.285,2628.4,2628.0,3.80509]
[1724262858370,2.285,2628.4,2628.3,0.05239378]
[1724262858566,2.285,2628.4,2628.0,3.80509]
[1724262858567,2.3867,2628.3,2628.0,3.80509]
[1724262859267,2.3867,2628.3,2627.7,3.0]
[1724262859471,2.3867,2628.3,2627.9,3.80531]
[1724262861767,2.3867,2628.3,2627.9,7.61055]
[1724262862199,2.3867,2628.3,2627.5,3.00491922]
[1724262862200,2.3867,2628.3,2628.1,3.80497]
[1724262862413,2.3867,2628.3,2628.2,7.60976]
[1724262862966,7.60797,2628.9,2628.0,3.898]
[1724262862967,2.3287,2628.9,2628.3,3.8047]
[1724262863177,2.3287,2628.9,2628.5,3.80444]
[1724262863410,6.13257,2628.9,2628.4,3.80458]
[1724262863756,9.93656,2628.9,2628.4,3.80458]
[1724262864074,2.2764,2628.7,2628.3,7.60935]
[1724262864277,2.2764,2628.7,2628.3,3.80465]
[1724262864492,2.2764,2628.7,2628.4,0.05231037]
[1724262864906,2.2764,2628.7,2628.4,3.85689037]
[1724262865050,2.2764,2628.7,2628.4,0.05231037]
[1724262865287,6.08058,2628.7,2628.4,0.05231037]
[1724262865485,2.2764,2628.7,2628.2,3.80475]